fUSD/lending_fUSD_20251210
["ID","MTS","AMOUNT","RATE_DAILY","PERIOD"]
[398131782,1765393459385,-102.56843536,0.00021936,119]
[398131783,1765393459411,-70.96252605,0.00023033,2]
[398131784,1765393461921,-179.03747395,0.00023033,2]
[398131785,1765393461948,-159.81662419,0.0002413,2]
[398131786,1765393463497,-35.18337581,0.0002413,2]
[398131787,1765393463524,-183.35589171,0.0002413,2]
[398131861,1765393819562,-243.32616561,0.0002413,2]
[398131862,1765393821638,-129.67383439,0.0002413,2]
[398131863,1765393821663,-154.14062291,0.00026,2]
[398131876,1765393831811,-44.85937709,0.00026,2]
[398131877,1765393831823,-151.13,0.00026207,2]
[398131878,1765393831837,-373.37609295,0.00026543,2]
[398131879,1765393831849,-274.14,0.00026676,2]
[398131880,1765393831862,-208.06021793,0.00030207,2]
[398131881,1765393831876,-188.04,0.00030774,2]
[398131882,1765393831892,-500.0,0.00031147,30]
[398131883,1765393831904,-274.14,0.00033165,2]
[398131884,1765393831917,-247.858383,0.00034825,2]
[398131885,1765393831928,-326.58769093,0.00034979,2]
[398131886,1765393831939,-5000.0,0.00035,2]
[398131887,1765393831951,-153.0,0.00035079,2]
[398131888,1765393831963,-300.0,0.0003567,3]
[398131889,1765393831976,-400.0,0.0003567,2]
[398131890,1765393831992,-744.69885274,0.0003567,3]
[398131891,1765393832010,-455.30114726,0.0003567,3]
[398131892,1765393832026,-500.0,0.00035671,2]
[398131893,1765393832040,-4312.93284303,0.00035671,2]
[398131894,1765393832063,-546.54497025,0.00035671,2]
[398131895,1765393832079,-562.249999,0.00035671,2]
[398131896,1765393832096,-1195.58218772,0.00035671,2]
[398131897,1765393832110,-150.99,0.00035671,30]
[398131898,1765393832122,-492.32781228,0.00035671,2]
[398131899,1765393832137,-724.37785151,0.00035671,2]
[398131901,1765393832152,-242.74433621,0.00035671,2]
[398131903,1765393832164,-150.99,0.00035671,2]
[398131905,1765393832176,-871.57055918,0.00036083,2]
[398131908,1765393832196,-503.42733945,0.00036083,2]
[398131912,1765393832220,-1903.81210137,0.00036083,2]
[398131914,1765393832233,-910.0,0.00036708,2]
[398131916,1765393832248,-184.079,0.00036974,2]
[398131919,1765393832260,-150.118,0.00036974,2]
[398131922,1765393832272,-150.145,0.00036974,2]
[398131924,1765393832283,-206.581,0.00036974,2]
[398131926,1765393832295,-150.245,0.00036974,2]
[398131928,1765393832307,-123.36761173,0.00036974,2]
[398131931,1765393832321,-26.63238827,0.00036974,2]
[398131933,1765393832333,-150.0,0.00036974,2]
[398131935,1765393832344,-150.0,0.00036974,2]
[398131937,1765393832355,-1.84265283,0.00036974,2]
[398131940,1765393832370,-148.38734717,0.00036974,2]
[398131942,1765393832383,-166.66,0.00037631,30]
[398131944,1765393832397,-326.58769091,0.00037929,2]
[398131945,1765393832410,-497.70770578,0.0003822,2]
[398131946,1765393832424,-62.29229422,0.0003822,2]
[398131947,1765393832437,-166.66,0.00038424,30]
[398131948,1765393832449,-818.43495594,0.0003843,2]
[398131949,1765393832465,-227.90504406,0.0003843,2]
[398131950,1765393832477,-1346.76,0.00038476,2]
[398131951,1765393832494,-1302.82,0.00038489,2]
[398131952,1765393832509,-14335.65706739,0.00039119,2]
[398131953,1765393832524,-3850.19525031,0.00039119,2]
[398131954,1765393832540,-166.66,0.00039216,30]
[398131955,1765393832554,-274.14,0.00039654,2]
[398131956,1765393832576,-1000.0,0.000398,7]
[398131957,1765393832590,-323.9073,0.00039973,10]
[398131958,1765393832603,-150.0,0.00039974,2]
[398131959,1765393832616,-150.0,0.00039974,2]
[398131960,1765393832629,-150.0,0.00039974,2]
[398131961,1765393832642,-150.0,0.00039974,2]
[398131962,1765393832654,-150.0,0.00039974,2]
[398131963,1765393832668,-150.0,0.00039974,2]
[398131964,1765393832681,-150.0,0.00039974,2]
[398131965,1765393832694,-103.11288229,0.0004,120]
[398131966,1765393832770,-1195.0,0.00036708,2]
[398131967,1765393832782,-148.54711771,0.0004,120]
[398131968,1765393832794,-2499.99,0.0004,120]
[398131969,1765393832805,-166.66,0.00040008,30]
[398131970,1765393833047,-307.92,0.00040131,2]
[398131971,1765393833069,-215.12,0.00040133,2]
[398131972,1765393833080,-230.31829292,0.00040258,2]
[398131973,1765393833090,-218.94857437,0.00040364,7]
[398131974,1765393833101,-500.0,0.00040364,7]
[398131975,1765393833111,-528.0,0.00040364,7]
[398131976,1765393833121,-173.97609419,0.00040364,7]
[398131977,1765393833135,-500.0,0.00040364,7]
[398131978,1765393833145,-617.0,0.00040364,7]
[398131979,1765393833155,-150.0,0.00040364,7]
[398131980,1765393833166,-535.0,0.00040364,7]
[398131981,1765393833176,-500.0,0.00040364,7]
[398131982,1765393833187,-1000.0,0.000404,7]
[398131983,1765393833197,-528.0,0.00040501,7]
[398131984,1765393833208,-500.0,0.00040501,7]
[398131985,1765393833218,-500.0,0.00040501,7]
[398131986,1765393833229,-617.0,0.00040501,7]
[398131987,1765393833243,-194.58531453,0.00040501,7]
[398131988,1765393833253,-535.0,0.00040501,7]
[398131989,1765393833263,-500.0,0.00040501,7]
[398131990,1765393833273,-514.0,0.00040599,2]
[398131991,1765393833283,-500.0,0.00040599,2]
[398131992,1765393833295,-215.48686071,0.00040599,2]
[398131993,1765393833305,-150.0,0.00040599,2]
[398131994,1765393833315,-500.0,0.00040599,2]
[398131995,1765393833326,-500.0,0.00040599,2]
[398131996,1765393833336,-500.0,0.00040599,2]
[398131997,1765393833346,-150.0,0.00040599,2]
[398131998,1765393833357,-500.0,0.00040599,2]
[398131999,1765393833366,-150.0,0.00040599,2]
[398132000,1765393833376,-150.0,0.00040599,2]
[398132001,1765393833387,-150.0,0.00040599,2]
[398132002,1765393833397,-192.0152441,0.00040599,2]
[398132003,1765393833407,-293.8387652,0.00040638,7]
[398132004,1765393833417,-528.0,0.00040638,7]
[398132005,1765393833429,-500.0,0.00040638,7]
[398132006,1765393833440,-617.0,0.00040638,7]
[398132007,1765393833450,-535.0,0.00040638,7]
[398132008,1765393833461,-500.0,0.00040638,7]
[398132009,1765393833474,-500.0,0.00040736,2]
[398132010,1765393833484,-514.0,0.00040736,2]
[398132011,1765393833497,-154.19787838,0.00040736,2]
[398132012,1765393833507,-500.0,0.00040736,2]
[398132013,1765393833519,-500.0,0.00040736,2]
[398132014,1765393833529,-500.0,0.00040736,2]
[398132015,1765393833540,-150.0,0.00040736,2]
[398132016,1765393833552,-500.0,0.00040736,2]
[398132017,1765393833562,-528.0,0.00040775,7]
[398132018,1765393833573,-500.0,0.00040775,7]
[398132019,1765393833583,-617.0,0.00040775,7]
[398132020,1765393833593,-535.0,0.00040775,7]
[398132021,1765393833604,-500.0,0.00040775,7]
[398132022,1765393833616,-166.66,0.000408,30]
[398132023,1765393833626,-500.0,0.00040822,2]
[398132024,1765393833637,-500.0,0.00040873,2]
[398132025,1765393833646,-514.0,0.00040873,2]
[398132026,1765393833657,-75.64860194,0.00040873,2]
[398132027,1765393833670,-424.35139806,0.00040873,2]
[398132028,1765393833680,-147.71640194,0.00040873,2]
[398132031,1765393837988,-500.0,0.00040364,7]
[398132032,1765393838002,-150.0,0.00040364,2]
[398132033,1765393838018,-150.0,0.00040364,7]
[398132034,1765393838029,-150.0,0.00040364,7]
[398132035,1765393838040,-500.0,0.00040364,7]
[398132036,1765393838051,-500.0,0.00040501,7]
[398132037,1765393838063,-150.0,0.00040501,2]
[398132038,1765393838075,-150.0,0.00040501,7]
[398132039,1765393838086,-166.39372239,0.00040501,7]
[398132040,1765393838097,-500.0,0.00040638,7]
[398132041,1765393838109,-252.53330699,0.00040638,2]
[398132042,1765393838120,-150.0,0.00040638,7]
[398132043,1765393838132,-500.0,0.00040775,7]
[398132044,1765393838143,-150.0,0.00040775,7]
[398132045,1765393838154,-352.28359806,0.00040873,2]
[398132046,1765393838166,-500.0,0.00040873,2]
[398132047,1765393838177,-204.69767392,0.00040873,2]
[398132048,1765393838189,-500.0,0.00040873,2]
[398132049,1765393838201,-326.58769091,0.00040879,2]
[398132050,1765393838212,-288.6588,0.00040894,2]
[398132051,1765393838222,-235.5853,0.00040894,2]
[398132052,1765393838232,-3969.65094318,0.00040894,15]
[398132053,1765393838246,-1000.0,0.00040895,2]
[398132054,1765393838263,-522.779,0.00040895,2]
[398132055,1765393838274,-4400.9304,0.00040895,2]
[398132056,1765393838285,-2500.0,0.00040895,2]
[398132057,1765393838296,-528.0,0.00040912,7]
[398132058,1765393838306,-617.0,0.00040912,7]
[398132059,1765393838316,-535.0,0.00040912,7]
[398132060,1765393838327,-500.0,0.00040912,7]
[398132061,1765393838337,-500.0,0.00040912,7]
[398132062,1765393838348,-206.21834464,0.00040912,7]
[398132063,1765393838360,-702.25,0.00040927,30]
[398132064,1765393838370,-15829.47129689,0.00040928,15]
[398132065,1765393838386,-1570.5,0.0004094,59]
[398132066,1765393838396,-500.0,0.0004094,2]
[398132067,1765393838408,-150.0,0.0004094,2]
[398132068,1765393838418,-174.61575993,0.0004094,2]
[398132069,1765393838429,-151.73216425,0.0004094,2]
[398132070,1765393838439,-155.3502179,0.0004094,2]
[398132071,1765393838451,-150.0,0.0004094,2]
[398132072,1765393838467,-192.0152441,0.0004094,2]
[398132073,1765393838482,-783.0,0.00040952,5]
[398132074,1765393838493,-3969.65094312,0.00040964,15]
[398132075,1765393838504,-500.0,0.00040979,7]
[398132076,1765393838517,-500.0,0.00040979,31]
[398132077,1765393838528,-500.0,0.00040979,31]
[398132078,1765393838539,-500.0,0.00040979,31]
[398132079,1765393838551,-327.40110584,0.00040979,7]
[398132080,1765393838562,-500.0,0.00040979,31]
[398132081,1765393838573,-500.0,0.00040979,7]
[398132082,1765393838583,-500.0,0.00040979,31]
[398132083,1765393838593,-500.0,0.00040979,31]
[398132084,1765393838604,-446.88187092,0.00040979,7]
[398132085,1765393838614,-462.39462956,0.00040979,31]
[398132086,1765393838625,-500.0,0.00040979,31]
[398132087,1765393838635,-500.0,0.00040979,31]
[398132088,1765393838646,-500.0,0.00040979,31]
[398132089,1765393838657,-500.0,0.00040979,31]
[398132091,1765393838669,-500.0,0.00040979,31]
[398132093,1765393838679,-500.0,0.00040979,31]
[398132094,1765393838690,-500.0,0.00040979,31]
[398132095,1765393838705,-609.41384905,0.00040979,31]
[398132096,1765393838715,-500.0,0.00040979,31]
[398132097,1765393838726,-500.0,0.00040979,31]
[398132098,1765393838737,-500.0,0.00040979,31]
[398132099,1765393838753,-500.0,0.00040979,31]
[398132100,1765393838765,-500.0,0.00040979,31]
[398132101,1765393838776,-500.0,0.00040979,31]
[398132102,1765393838786,-500.0,0.00040979,31]
[398132103,1765393838797,-500.0,0.00040979,31]
[398132104,1765393838809,-500.0,0.00040979,31]
[398132105,1765393838820,-500.0,0.00040979,31]
[398132106,1765393838830,-500.0,0.00040979,31]
[398132107,1765393838841,-350.00000001,0.00040979,31]
[398132108,1765393838851,-500.0,0.00040979,31]
[398132109,1765393838863,-430.0,0.00040979,31]
[398132110,1765393838874,-500.0,0.00040979,31]
[398132111,1765393838885,-500.0,0.00040979,31]
[398132112,1765393838896,-500.0,0.00040979,31]
[398132113,1765393838906,-434.15492547,0.00040979,31]
[398132114,1765393838917,-500.0,0.00040979,31]
[398132115,1765393838928,-47995.3715189,0.0004098,120]
[398132116,1765393838939,-65866.440394,0.00040985,4]
[398132117,1765393838950,-1782.62,0.00040985,2]
[398132118,1765393838961,-1782.62,0.00040985,2]
[398132119,1765393838972,-1782.62,0.00040985,2]
[398132120,1765393838983,-1782.62,0.00040985,2]
[398132121,1765393838995,-1782.62,0.00040985,2]
[398132122,1765393839007,-500.0,0.00040994,60]
[398132123,1765393839018,-8715.61707547,0.00040994,2]
[398132124,1765393839028,-500.0,0.00040994,60]
[398132125,1765393839038,-500.0,0.00040994,2]
[398132126,1765393839048,-500.0,0.00040994,2]
[398132127,1765393839058,-500.0,0.00040994,2]
[398132128,1765393839068,-197.94689894,0.00040994,31]
[398132129,1765393839078,-500.0,0.00040994,31]
[398132130,1765393839088,-362.14138878,0.00040994,31]
[398132131,1765393839099,-600.46452073,0.00040994,31]
[398132132,1765393839112,-500.0,0.00040994,31]
[398132133,1765393839122,-15829.47129686,0.00040994,15]
[398132134,1765393839133,-760000.0,0.00040995,2]
[398132135,1765393839143,-1000.0,0.00041,7]
[398132136,1765393839154,-514.0,0.0004101,2]
[398132137,1765393839164,-500.0,0.0004101,2]
[398132138,1765393839174,-500.0,0.0004101,2]
[398132139,1765393839183,-500.0,0.0004101,2]
[398132140,1765393839193,-500.0,0.0004101,2]
[398132141,1765393839203,-500.0,0.0004101,2]
[398132142,1765393839213,-3969.65094312,0.00041034,15]
[398132143,1765393839225,-528.0,0.00041049,7]
[398132144,1765393839236,-617.0,0.00041049,7]
[398132145,1765393839248,-535.0,0.00041049,7]
[398132146,1765393839259,-500.0,0.00041049,7]
[398132147,1765393839271,-500.0,0.00041049,7]
[398132148,1765393839282,-15829.47129686,0.0004106,15]
[398132149,1765393839292,-500.0,0.00041077,2]
[398132150,1765393839302,-202.60109989,0.00041077,2]
[398132151,1765393839317,-150.0,0.00041077,2]
[398132152,1765393839328,-25773.824502,0.00041085,4]
[398132153,1765393839339,-250.60859262,0.00041085,7]
[398132154,1765393839351,-150.85,0.00041085,2]
[398132155,1765393839363,-500.0,0.00041094,2]
[398132156,1765393839373,-2636.0,0.00041095,5]
[398132157,1765393839383,-500.0,0.00041095,60]
[398132158,1765393839393,-155.098251,0.00041095,60]
[398132159,1765393839403,-155.098251,0.00041095,60]
[398132160,1765393839414,-155.098251,0.00041095,60]
[398132161,1765393839424,-155.098251,0.00041095,60]
[398132162,1765393839434,-155.098251,0.00041095,60]
[398132163,1765393839445,-167.725728,0.00041095,60]
[398132164,1765393839455,-167.725728,0.00041095,60]
[398132165,1765393839470,-167.725728,0.00041095,60]
[398132166,1765393839480,-167.725728,0.00041095,60]
[398132167,1765393839490,-167.725728,0.00041095,60]
[398132168,1765393839502,-167.725728,0.00041095,60]
[398132169,1765393839512,-167.725728,0.00041095,60]
[398132170,1765393839522,-167.725728,0.00041095,60]
[398132171,1765393839532,-168.642679,0.00041095,60]
[398132172,1765393839542,-168.642679,0.00041095,60]
[398132173,1765393839554,-168.642679,0.00041095,60]
[398132174,1765393839564,-168.642679,0.00041095,60]
[398132175,1765393839574,-168.642679,0.00041095,60]
[398132176,1765393839585,-168.642679,0.00041095,60]
[398132177,1765393839596,-168.642679,0.00041095,60]
[398132178,1765393839605,-179.498018,0.00041095,60]
[398132179,1765393839616,-170.090742,0.00041095,60]
[398132180,1765393839626,-170.090742,0.00041095,60]
[398132181,1765393839635,-170.090742,0.00041095,60]
[398132182,1765393839646,-170.090742,0.00041095,60]
[398132183,1765393839657,-170.090742,0.00041095,60]
[398132184,1765393839667,-170.090742,0.00041095,60]
[398132185,1765393839677,-500.0,0.00041095,60]
[398132186,1765393839701,-500.0,0.00041095,60]
[398132187,1765393839711,-500.0,0.00041095,60]
[398132188,1765393839722,-500.0,0.00041095,60]
[398132189,1765393839732,-500.0,0.00041095,60]
[398132190,1765393839743,-500.0,0.00041095,60]
[398132191,1765393839755,-500.0,0.00041095,60]
[398132192,1765393839766,-500.0,0.00041095,60]
[398132193,1765393839776,-500.0,0.00041095,60]
[398132194,1765393839786,-500.0,0.00041095,60]
[398132195,1765393839797,-500.0,0.00041095,60]
[398132196,1765393839807,-500.0,0.00041095,60]
[398132197,1765393839817,-500.0,0.00041095,60]
[398132198,1765393839828,-500.0,0.00041095,60]
[398132199,1765393839838,-500.0,0.00041095,60]
[398132200,1765393839848,-500.0,0.00041095,60]
[398132201,1765393839858,-500.0,0.00041095,60]
[398132202,1765393839869,-500.0,0.00041095,60]
[398132203,1765393839879,-500.0,0.00041095,60]
[398132205,1765393839890,-500.0,0.00041095,60]
[398132207,1765393839901,-500.0,0.00041095,60]
[398132209,1765393839911,-181.9561328,0.00041095,60]
[398132211,1765393839921,-500.0,0.00041095,60]
[398132213,1765393839932,-500.0,0.00041095,60]
[398132214,1765393839943,-500.0,0.00041095,60]
[398132215,1765393839953,-500.0,0.00041095,60]
[398132216,1765393839963,-502.42034168,0.00041095,60]
[398132217,1765393839974,-500.0,0.00041095,60]
[398132218,1765393839985,-502.07313405,0.00041095,60]
[398132219,1765393839995,-500.0,0.00041095,60]
[398132220,1765393840005,-500.0,0.00041095,60]
[398132221,1765393840016,-500.0,0.00041095,60]
[398132222,1765393840026,-500.0,0.00041095,60]
[398132223,1765393840042,-500.0,0.00041095,60]
[398132224,1765393840054,-500.0,0.00041095,60]
[398132225,1765393840065,-500.0,0.00041095,60]
[398132226,1765393840076,-500.0,0.00041095,11]
[398132227,1765393840087,-500.0,0.00041095,60]
[398132228,1765393840098,-500.0,0.00041095,60]
[398132229,1765393840109,-500.0,0.00041095,60]
[398132230,1765393840119,-500.0,0.00041095,60]
[398132231,1765393840130,-500.0,0.00041095,60]
[398132232,1765393840140,-500.0,0.00041095,60]
[398132233,1765393840150,-234.18704691,0.00041095,60]
[398132234,1765393840160,-500.0,0.00041095,60]
[398132235,1765393840170,-500.0,0.00041095,60]
[398132236,1765393840180,-500.0,0.00041095,60]
[398132237,1765393840191,-500.0,0.00041095,60]
[398132238,1765393840202,-500.0,0.00041095,60]
[398132239,1765393840213,-500.0,0.00041095,60]
[398132240,1765393840224,-500.0,0.00041095,60]
[398132241,1765393840235,-500.0,0.00041095,60]
[398132242,1765393840247,-500.0,0.00041095,60]
[398132243,1765393840258,-500.0,0.00041095,60]
[398132244,1765393840268,-500.0,0.00041095,60]
[398132245,1765393840279,-500.0,0.00041095,60]
[398132246,1765393840289,-500.0,0.00041095,60]
[398132247,1765393840299,-500.0,0.00041095,60]
[398132248,1765393840310,-500.0,0.00041095,60]
[398132249,1765393840320,-500.0,0.00041095,60]
[398132250,1765393840332,-500.0,0.00041095,60]
[398132251,1765393840342,-500.0,0.00041095,60]
[398132252,1765393840352,-500.0,0.00041095,60]
[398132253,1765393840363,-500.0,0.00041095,60]
[398132259,1765393840590,-500.0,0.00041095,60]
[398132260,1765393840601,-500.0,0.00041095,60]
[398132262,1765393840612,-500.0,0.00041095,60]
[398132263,1765393840623,-500.0,0.00041095,60]
[398132264,1765393840634,-500.0,0.00041095,60]
[398132265,1765393840644,-500.0,0.00041095,60]
[398132266,1765393840654,-500.0,0.00041095,60]
[398132267,1765393840665,-500.0,0.00041095,60]
[398132268,1765393840675,-500.0,0.00041095,60]
[398132269,1765393840685,-500.0,0.00041095,60]
[398132270,1765393840695,-500.0,0.00041095,60]
[398132271,1765393840708,-500.0,0.00041095,60]
[398132272,1765393840719,-500.0,0.00041095,60]
[398132273,1765393840729,-500.0,0.00041095,60]
[398132274,1765393840739,-500.0,0.00041095,60]
[398132275,1765393840752,-500.0,0.00041095,60]
[398132276,1765393840762,-500.0,0.00041095,60]
[398132277,1765393840772,-500.0,0.00041095,60]
[398132278,1765393840782,-500.0,0.00041095,60]
[398132279,1765393840792,-500.0,0.00041095,60]
[398132280,1765393840802,-500.0,0.00041095,60]
[398132281,1765393840813,-500.0,0.00041095,60]
[398132282,1765393840823,-500.0,0.00041095,60]
[398132283,1765393840834,-500.0,0.00041095,60]
[398132284,1765393840844,-500.0,0.00041095,60]
[398132285,1765393840854,-500.0,0.00041095,60]
[398132286,1765393840865,-150.0,0.00041095,60]
[398132287,1765393840875,-150.0,0.00041095,60]
[398132288,1765393840885,-500.0,0.00041095,60]
[398132289,1765393840896,-500.0,0.00041095,60]
[398132290,1765393840909,-500.0,0.00041095,60]
[398132291,1765393840919,-500.0,0.00041095,60]
[398132292,1765393840929,-501.79244723,0.00041095,60]
[398132293,1765393840939,-500.0,0.00041095,60]
[398132294,1765393840949,-377.84440227,0.00041095,60]
[398132295,1765393840959,-500.0,0.00041095,60]
[398132296,1765393840969,-500.0,0.00041095,60]
[398132297,1765393840979,-500.0,0.00041095,60]
[398132298,1765393840989,-500.0,0.00041095,60]
[398132300,1765393840999,-475.86385598,0.00041095,60]
[398132303,1765393841148,-24.13614402,0.00041095,60]
[398132304,1765393841159,-500.0,0.00041095,60]
[398132305,1765393841169,-500.0,0.00041095,60]
[398132306,1765393841179,-501.93277199,0.00041095,60]
[398132307,1765393841189,-500.0,0.00041095,60]
[398132308,1765393841199,-150.77229389,0.00041095,60]
[398132309,1765393841224,-152.04179957,0.00040131,2]
[398132310,1765393841234,-506.7251833,0.00040501,7]
[398132311,1765393841243,-349.22770611,0.00041095,60]
[398132312,1765393841258,-500.0,0.00041095,60]
[398132313,1765393841271,-500.0,0.00041095,60]
[398132314,1765393841282,-500.0,0.00041095,60]
[398132315,1765393841293,-500.0,0.00041095,60]
[398132316,1765393841303,-500.0,0.00041095,60]
[398132317,1765393841314,-500.0,0.00041095,60]
[398132318,1765393841326,-458.44369279,0.00041095,60]
[398132319,1765393841337,-500.0,0.00041095,60]
[398132320,1765393841349,-500.0,0.00041095,60]
[398132321,1765393841360,-500.0,0.00041095,60]
[398132322,1765393841373,-500.0,0.00041095,60]
[398132323,1765393841383,-500.0,0.00041095,60]
[398132324,1765393841394,-500.0,0.00041095,60]
[398132325,1765393841404,-500.0,0.00041095,60]
[398132326,1765393841414,-500.0,0.00041095,60]
[398132327,1765393841424,-500.0,0.00041095,60]
[398132328,1765393841435,-500.0,0.00041095,60]
[398132329,1765393841445,-500.0,0.00041095,60]
[398132330,1765393841455,-500.0,0.00041095,60]
[398132331,1765393841470,-500.0,0.00041095,60]
[398132332,1765393841480,-500.0,0.00041095,60]
[398132333,1765393841490,-500.00000017,0.00041095,60]
[398132334,1765393841504,-500.0,0.00041095,60]
[398132335,1765393841514,-500.0,0.00041095,60]
[398132336,1765393841523,-500.0,0.00041095,60]
[398132337,1765393841534,-500.0,0.00041095,60]
[398132338,1765393841544,-500.0,0.00041095,60]
[398132339,1765393841554,-223.50794296,0.00041095,60]
[398132340,1765393841564,-500.0,0.00041095,60]
[398132341,1765393841575,-500.0,0.00041095,60]
[398132342,1765393841584,-500.0,0.00041095,60]
[398132343,1765393841594,-430.37520634,0.00041095,60]
[398132344,1765393841604,-500.0,0.00041095,60]
[398132345,1765393841613,-500.0,0.00041095,60]
[398132346,1765393841623,-500.0,0.00041095,60]
[398132347,1765393841633,-500.0,0.00041095,60]
[398132348,1765393841642,-500.0,0.00041095,60]
[398132349,1765393841652,-500.0,0.00041095,60]
[398132350,1765393841662,-500.0,0.00041095,60]
[398132351,1765393841672,-500.0,0.00041095,60]
[398132352,1765393841682,-500.0,0.00041095,60]
[398132353,1765393841692,-500.0,0.00041095,60]
[398132354,1765393841702,-500.0,0.00041095,60]
[398132355,1765393841711,-500.0,0.00041095,60]
[398132356,1765393841721,-500.0,0.00041095,60]
[398132357,1765393841731,-500.0,0.00041095,60]
[398132358,1765393841741,-598.61,0.00041095,60]
[398132359,1765393841752,-598.61,0.00041095,60]
[398132360,1765393841762,-500.0,0.00041095,60]
[398132361,1765393841773,-500.0,0.00041095,60]
[398132362,1765393841783,-500.0,0.00041095,60]
[398132363,1765393841793,-500.0,0.00041095,60]
[398132364,1765393841803,-500.0,0.00041095,60]
[398132365,1765393841813,-500.0,0.00041095,60]
[398132366,1765393841823,-500.0,0.00041095,60]
[398132367,1765393841834,-500.0,0.00041095,60]
[398132368,1765393841843,-500.0,0.00041095,60]
[398132369,1765393841854,-500.0,0.00041095,60]
[398132370,1765393841864,-500.0,0.00041095,60]
[398132371,1765393841874,-500.0,0.00041095,60]
[398132372,1765393841883,-500.0,0.00041095,60]
[398132373,1765393841893,-500.0,0.00041095,60]
[398132374,1765393841903,-500.0,0.00041095,60]
[398132375,1765393841913,-500.0,0.00041095,60]
[398132376,1765393841923,-500.0,0.00041095,60]
[398132377,1765393841933,-500.0,0.00041095,60]
[398132378,1765393841943,-500.0,0.00041095,60]
[398132379,1765393841952,-500.0,0.00041095,60]
[398132380,1765393841962,-500.0,0.00041095,60]
[398132381,1765393841972,-500.0,0.00041095,60]
[398132382,1765393841981,-500.0,0.00041095,60]
[398132383,1765393841991,-500.0,0.00041095,60]
[398132384,1765393842002,-500.0,0.00041095,60]
[398132385,1765393842013,-500.0,0.00041095,60]
[398132386,1765393842022,-500.0,0.00041095,60]
[398132387,1765393842033,-222.86,0.00041095,60]
[398132388,1765393842043,-500.0,0.00041095,60]
[398132389,1765393842053,-417.8,0.00041095,60]
[398132390,1765393842063,-500.0,0.00041095,60]
[398132391,1765393842074,-500.0,0.00041095,60]
[398132392,1765393842083,-1548.52,0.00041095,60]
[398132393,1765393842092,-1548.52,0.00041095,60]
[398132394,1765393842102,-1548.52,0.00041095,60]
[398132395,1765393842112,-1548.52,0.00041095,60]
[398132396,1765393842122,-500.0,0.00041095,60]
[398132397,1765393842131,-500.0,0.00041095,60]
[398132398,1765393842141,-500.74825942,0.00041095,60]
[398132399,1765393842150,-500.0,0.00041095,60]
[398132400,1765393842160,-500.0,0.00041095,60]
[398132401,1765393842170,-500.0,0.00041095,60]
[398132402,1765393842181,-500.0,0.00041095,60]
[398132403,1765393842191,-501.04723905,0.00041095,60]
[398132404,1765393842200,-500.0,0.00041095,60]
[398132405,1765393842211,-500.0,0.00041095,60]
[398132406,1765393842221,-500.0,0.00041095,60]
[398132407,1765393842231,-500.0,0.00041095,60]
[398132408,1765393842241,-500.0,0.00041095,60]
[398132409,1765393842254,-500.0,0.00041095,60]
[398132410,1765393842264,-584.8305548,0.00041095,60]